bitfinex-derivatives/quotes_ETHF0:USTF0_20250810
["timestamp","ask_amount","ask_price","bid_price","bid_amount"]
[1754806631829,0.3687,4211.5,4211.4,1.8373]
[1754806632036,0.47479,4211.7,4211.6,0.7599]
[1754806632238,0.84349,4211.7,4211.6,1.8373]
[1754806632437,0.3687,4211.7,4211.6,1.8373]
[1754806633235,1.9339,4211.7,4211.6,1.4771]
[1754806633736,2.40869,4211.6,4211.5,1.1751]
[1754806633938,2.40869,4211.6,4211.5,1.4771]
[1754806634142,2.40869,4211.6,4211.5,1.1751]
[1754806634435,0.47484,4211.2,4211.0,0.005]
[1754806634634,0.3687,4211.2,4211.1,1.8373]
[1754806636039,0.005,4211.9,4211.8,1.4221]
[1754806636239,0.005,4211.9,4211.8,5.0451]
[1754806636540,0.5,4212.1,4212.0,1.8373]
[1754806637239,0.26847693,4212.1,4212.0,2.17595096]
[1754806637439,0.63717693,4212.1,4212.0,2.17595096]
[1754806637638,1.40107693,4212.1,4212.0,1.81575096]
[1754806637835,1.14397693,4212.1,4212.0,2.17595096]
[1754806638037,2.20237693,4212.1,4212.0,0.33865096]
[1754806639333,1.9339,4212.1,4212.0,0.33865096]
[1754806639733,1.9339,4212.1,4212.0,1.81575096]
[1754806640029,1.9339,4212.1,4212.0,0.33865096]
[1754806640931,1.5272,4211.8,4211.7,1.4771]
[1754806641130,0.3687,4211.8,4211.7,2.17412454]
[1754806641731,1.9339,4211.8,4211.7,1.81392454]
[1754806641936,1.1326,4211.8,4211.7,2.17412454]
[1754806642338,0.3687,4211.8,4211.7,2.17412454]
[1754806642641,4.735,4212.2,4212.1,0.9287]
[1754806642842,5.1417,4212.2,4212.1,0.33682454]
[1754806643745,0.7639,4211.4,4211.3,4.3829]
[1754806643944,1.5272,4211.4,4211.3,5.02175824]
[1754806644344,1.5272,4211.4,4211.3,1.81395824]
[1754806644551,0.3687,4211.4,4211.3,2.17415824]
[1754806644736,1.1326,4211.8,4211.7,1.8373]
[1754806644941,1.9339,4211.8,4211.7,1.81395824]
[1754806645440,1.23854,4213.0,4212.9,0.2388]
[1754806645746,0.7639,4212.1,4212.0,1.59584]
[1754806645945,1.5652,4212.1,4211.9,3.2078]
[1754806646148,0.7639,4211.6,4211.5,0.71359]
[1754806646354,1.5652,4211.6,4211.5,0.2388]
[1754806646542,0.8013,4211.5,4211.3,0.47482]
[1754806646744,1.5652,4211.4,4211.3,0.2388]
[1754806646939,0.7639,4211.2,4211.1,0.005]
[1754806647254,0.7639,4211.2,4211.1,0.2438]
[1754806647255,1.5652,4211.2,4211.1,0.2438]
[1754806647450,1.70231237,4211.2,4211.1,0.2438]
[1754806647648,1.70231237,4211.2,4211.1,1.8426]
[1754806648043,2.20231237,4211.2,4211.1,1.8426]
[1754806648847,0.5,4211.2,4211.1,1.8426]
[1754806649644,2.4339,4211.2,4211.1,1.5406]
[1754806650352,2.4339,4211.2,4211.1,0.879]
[1754806650648,2.4339,4211.2,4211.1,0.5185]
[1754806651249,2.4339,4211.2,4211.1,1.842]
[1754806651840,2.4339,4211.2,4211.1,1.5406]
[1754806652039,2.4339,4211.2,4211.1,0.5185]
[1754806654249,2.90874,4211.2,4211.1,0.2438]
[1754806654449,2.90874,4211.2,4211.1,0.005]
[1754806654650,2.4339,4211.2,4211.1,1.5406]
[1754806654850,2.4339,4211.2,4211.1,1.842]
[1754806655148,1.6585,4211.2,4211.1,1.842]
[1754806656353,1.2747,4211.2,4211.1,1.5637]
[1754806656650,1.1099,4211.2,4211.1,1.8619]
[1754806656848,0.5,4211.2,4211.1,1.8619]
[1754806657051,1.1099,4211.2,4211.1,1.8619]
[1754806657248,0.398,4212.1,4211.9,0.6618]
[1754806657447,3.5742,4212.8,4211.9,1.4136]
[1754806657647,3.5742,4212.8,4211.9,7.4136]
[1754806657849,3.739,4212.8,4212.7,0.6618]
[1754806658056,3.9825,4212.8,4212.7,1.4136]
[1754806658244,1.9193,4212.8,4212.7,1.4136]
[1754806659152,0.9292,4212.8,4212.7,4.6214]
[1754806659353,0.5312,4212.8,4212.7,4.6214]
[1754806659556,0.2693,4212.8,4212.7,4.6214]
[1754806659855,0.3802,4213.1,4212.7,3.8696]
[1754806660048,0.2693,4212.9,4212.8,1.4136]
[1754806660244,1.239,4213.3,4212.8,0.6618]
[1754806660449,0.3664,4213.2,4212.8,0.6618]
[1754806660750,0.8792,4213.2,4213.1,0.6618]
[1754806660948,1.9193,4213.2,4213.1,1.1154]
[1754806661149,1.9193,4213.2,4213.1,0.2619]
[1754806662145,0.47462,4213.1,4212.7,3.6614]
[1754806662454,0.8792,4212.8,4212.7,4.6214]
[1754806662645,0.398,4213.2,4213.1,0.6618]
[1754806662846,0.47462,4213.1,4212.7,3.2078]
[1754806663050,1.5391,4212.8,4212.7,4.26]
[1754806663455,1.5391,4212.8,4212.7,4.6214]
[1754806664453,0.84102,4213.1,4212.7,4.6214]
[1754806664653,1.40382,4213.1,4213.0,1.4136]
[1754806664860,2.39392,4213.1,4213.0,1.4136]
[1754806665460,2.39392,4213.1,4213.0,1.1154]
[1754806666460,3.2078,4213.8,4212.7,3.506]
[1754806666461,2.39396,4212.8,4212.7,3.2078]
[1754806666862,1.24936,4212.8,4212.2,3.2078]
[1754806667062,1.9193,4212.5,4212.4,0.706]
[1754806667263,1.9193,4212.5,4212.4,1.4136]
[1754806669052,1.9193,4212.5,4212.4,0.5601]
[1754806669263,1.9193,4212.5,4210.9,4.12980425]
[1754806669264,1.9193,4211.2,4209.0,3.2078]
[1754806669566,3.2078,4211.2,4211.1,0.2457]
[1754806669759,4.087,4211.8,4211.1,0.40879593]
[1754806670060,0.3664,4212.4,4211.7,0.2457]
[1754806670362,0.3664,4212.4,4209.9,0.42591335]
[1754806670363,0.398,4211.7,4209.9,0.42591335]
[1754806670658,0.398,4211.7,4209.0,11.103]
[1754806670659,3.0543,4210.1,4210.0,3.55129185]
[1754806670961,0.47499,4209.9,4209.3,3.14249204]
[1754806671258,3.2078,4209.4,4208.9,3.14249204]
[1754806671556,0.47495,4210.3,4209.4,3.07329996]
[1754806671759,3.2078,4209.5,4208.9,3.26612396]
[1754806671958,3.2078,4209.0,4208.9,0.192824]
[1754806672153,3.2078,4209.0,4208.9,0.3358187]
[1754806672358,3.2078,4209.0,4208.9,3.40911866]
[1754806672756,3.2078,4209.0,4208.9,3.60213213]
[1754806672958,3.9544,4209.0,4207.6,0.47524]
[1754806673158,0.3664,4209.3,4207.7,11.135]
[1754806673353,3.2078,4208.6,4208.0,3.02786037]
[1754806673561,3.2078,4208.7,4207.8,3.07692188]
[1754806673765,3.2078,4208.2,4208.1,3.07692188]
[1754806673966,3.2078,4208.9,4207.9,3.07692188]
[1754806674156,3.2078,4208.2,4207.9,0.23607444]
[1754806674356,3.2078,4208.0,4207.8,11.138]
[1754806674557,3.2078,4207.9,4207.8,11.138]
[1754806674861,3.588,4207.9,4207.8,3.03985014]
[1754806675067,3.9544,4207.9,4207.8,3.03985014]
[1754806675266,0.7466,4207.8,4207.7,3.03985014]
[1754806675464,0.7466,4207.8,4207.6,0.19235032]
[1754806675666,0.7466,4207.7,4207.1,0.96264692]
[1754806675863,0.7466,4207.8,4207.7,3.1598518]
[1754806676161,0.7644,4207.8,4207.2,3.1598518]
[1754806676364,3.2078,4207.4,4207.1,1.15433265]
[1754806676556,3.2078,4207.4,4207.2,3.15966942]
[1754806676759,3.2078,4208.0,4207.2,9.15966942]
[1754806676957,0.3802,4208.0,4207.2,3.15966942]
[1754806677169,3.588,4207.6,4207.2,3.15966942]
[1754806677364,3.2078,4207.6,4207.2,3.15966942]
[1754806677758,3.588,4207.6,4207.2,3.15966942]
[1754806677962,0.3802,4207.3,4207.2,14.32566942]
[1754806678163,0.7466,4207.3,4207.2,14.32566942]
[1754806678368,0.3802,4207.3,4207.2,14.32566942]
[1754806678566,3.2078,4207.6,4207.2,20.32566942]
[1754806678766,3.2078,4207.6,4207.2,14.32566942]
[1754806678964,3.2078,4207.6,4207.3,11.167]
[1754806679262,1.1446,4207.5,4207.4,3.05326092]
[1754806679764,1.1446,4207.4,4207.3,3.02314371]
[1754806679965,3.2078,4207.6,4207.1,0.96264692]
[1754806680268,1.1446,4207.4,4207.3,3.02314371]
[1754806680466,0.7466,4207.3,4207.1,0.96264692]
[1754806680664,0.7466,4207.3,4207.2,3.05764118]
[1754806680859,1.1446,4207.5,4207.1,0.96264692]
[1754806681167,1.1446,4207.3,4207.2,3.05764118]
[1754806681469,0.7466,4207.3,4207.2,3.05764118]
[1754806681663,0.3802,4207.3,4207.2,3.05764118]
[1754806682062,0.7466,4207.3,4207.2,3.05764118]
[1754806682267,0.47528,4207.4,4207.1,0.96264692]
[1754806682573,1.1446,4207.2,4207.1,0.96264692]
[1754806682960,1.1446,4207.2,4207.1,4.10535147]
[1754806683168,4.3524,4207.2,4207.1,0.89755147]
[1754806683465,0.7466,4206.4,4205.6,10.198]
[1754806683671,3.6058,4206.1,4205.7,17.2932575]
[1754806683870,0.3664,4206.0,4205.8,3.10013865]
[1754806684473,0.3802,4205.9,4205.8,3.10013865]
[1754806684667,1.1446,4205.9,4205.8,3.10013865]
[1754806684868,0.7466,4205.9,4205.8,3.10013865]
[1754806685171,0.3802,4205.9,4205.8,14.62081946]
[1754806685370,0.3899,4206.8,4205.8,23.82861946]
[1754806685571,3.2078,4206.0,4205.9,11.53568081]
[1754806685772,3.9933,4206.0,4205.9,0.33068081]
[1754806686072,3.9933,4206.0,4205.9,3.43678625]
[1754806686264,4.3917,4206.0,4205.9,3.43678625]
[1754806686979,3.8917,4206.0,4205.9,3.43678625]
[1754806687164,3.8917,4206.0,4205.9,0.33068081]
[1754806688268,3.8917,4206.0,4205.9,0.32985475]
[1754806688469,3.2078,4206.0,4205.9,3.46654615]
[1754806688672,3.6062,4207.1,4205.9,9.67954615]
[1754806688874,3.9961,4207.1,4206.1,0.213]
[1754806689177,3.5977,4207.1,4206.3,0.213]
[1754806689478,0.3956,4207.2,4206.4,3.39957078]
[1754806689479,1.1839,4206.5,4206.4,3.39957078]
[1754806689768,1.1839,4206.5,4206.1,3.06971603]
[1754806689769,3.2078,4206.6,4205.7,11.235]
[1754806690078,4.3917,4205.8,4205.7,11.235]
[1754806690374,4.3917,4205.8,4205.7,0.3300635]
[1754806691375,4.3917,4205.8,4205.7,3.45694228]
[1754806691376,0.7855,4205.8,4205.7,3.45694228]
[1754806691682,0.7855,4206.1,4205.7,3.66994228]
[1754806691971,0.3956,4206.0,4205.8,0.3300635]
[1754806692171,0.3956,4206.0,4205.9,0.3300635]
[1754806692375,0.794,4206.0,4205.9,3.45694228]
[1754806692573,0.794,4206.0,4205.9,0.3300635]
[1754806692771,1.1839,4206.0,4205.9,0.3300635]
[1754806694477,1.1839,4206.0,4205.9,3.39370827]
[1754806694674,1.1839,4206.0,4205.9,0.3300635]
[1754806696375,0.47545,4205.9,4205.5,0.005]
[1754806696679,4.3917,4205.6,4205.5,11.23]
[1754806698277,4.3917,4205.6,4205.5,11.225]
[1754806698478,3.9933,4205.6,4205.5,11.4137]
[1754806698780,4.3917,4205.6,4205.5,14.55397011]
[1754806698969,4.3917,4205.6,4205.5,0.005]
[1754806700074,3.2078,4205.6,4204.2,0.1935]
[1754806700273,0.3899,4204.6,4204.4,0.66912]
[1754806700478,0.3899,4204.8,4204.6,0.234]
[1754806700674,0.3956,4205.5,4205.2,0.47552]
[1754806700877,3.6034,4206.3,4205.5,0.1935]
[1754806701073,0.794,4206.1,4205.5,0.1935]
[1754806701380,0.7855,4205.7,4205.6,3.11870586]
[1754806701581,0.7855,4205.7,4205.6,14.53317807]
[1754806701878,0.7855,4205.7,4205.6,14.68917811]
[1754806702075,0.7855,4205.7,4205.6,14.53570889]
[1754806702273,1.1839,4205.7,4205.1,0.1935]
[1754806702584,3.2078,4205.8,4205.3,0.4275]
[1754806702780,1.1839,4205.5,4205.4,0.1935]
[1754806702978,1.1839,4205.5,4205.4,3.31839644]
[1754806703177,1.1839,4205.5,4205.4,11.26]
[1754806703685,0.56728307,4205.7,4205.4,11.258]
[1754806703978,3.2078,4205.7,4205.4,11.4515]
[1754806704182,0.7855,4205.6,4205.4,11.258]
[1754806704382,1.06728307,4206.0,4205.6,0.234]
[1754806704581,0.8899,4206.0,4205.7,0.62930581]
[1754806704780,0.5,4206.0,4205.9,0.4275]
[1754806704978,3.2078,4206.9,4206.3,0.4275]
[1754806705176,3.2078,4206.9,4206.4,0.34733581]
[1754806705481,3.2078,4206.9,4206.0,11.261]
[1754806705682,3.9933,4206.2,4206.1,0.1935]
[1754806706090,4.86712,4206.2,4206.1,11.42693662]
[1754806706383,3.76296917,4206.2,4206.1,11.273]
[1754806706574,3.68321,4206.2,4206.1,11.273]
[1754806706774,3.2078,4206.2,4206.1,11.273]
[1754806706974,4.3917,4206.2,4206.1,11.273]
[1754806707983,1.1839,4206.0,4205.9,11.774]
[1754806708283,1.1839,4206.0,4205.9,0.5]
[1754806708683,1.6839,4206.0,4205.9,0.5]
[1754806709185,1.6839,4206.0,4205.9,0.65425219]
[1754806709484,0.5,4206.0,4205.9,1.08175219]
[1754806709882,0.5,4206.0,4205.9,4.13715801]
[1754806711485,0.8899,4206.0,4205.9,3.90315801]
[1754806711686,1.2855,4206.0,4205.9,3.90315801]
[1754806711884,0.5,4206.0,4205.9,4.13715801]
[1754806712385,0.5,4206.0,4205.9,7.34495801]
[1754806712777,0.3949,4206.4,4206.0,0.47544]
[1754806712978,0.005,4206.4,4206.3,0.4275]
[1754806713188,0.005,4206.4,4206.3,0.58175219]
[1754806713484,0.005,4206.4,4206.3,3.68979451]
[1754806714485,0.3899,4206.8,4206.4,0.47539]
[1754806714686,0.3956,4207.4,4206.7,3.4418]
[1754806714880,0.3984,4207.5,4207.0,0.47532]
[1754806715075,0.3899,4207.6,4207.3,0.4275]
[1754806715277,0.3899,4207.6,4207.5,0.1932]
[1754806715482,0.8082,4207.6,4207.5,0.34745219]
[1754806715981,0.97796917,4208.0,4207.6,0.47526]
[1754806716287,1.2567,4208.3,4207.7,17.67632754]
[1754806716586,1.2567,4208.2,4207.8,0.15425219]
[1754806716888,1.2567,4208.0,4207.9,0.15425219]
[1754806717184,0.8411,4208.0,4207.9,0.34745219]
[1754806717380,1.2567,4208.0,4207.9,0.34745219]
[1754806717575,1.2567,4208.0,4207.9,11.59345219]
[1754806719488,1.2567,4208.0,4207.9,11.40025219]
[1754806719690,1.2567,4208.0,4207.9,11.38725219]
[1754806719885,1.2567,4208.0,4207.9,11.58045219]
[1754806720392,0.8411,4208.0,4207.9,11.58045219]
[1754806720585,0.8411,4208.1,4208.0,0.66842]
[1754806720885,1.2567,4208.1,4208.0,11.38225219]
[1754806721391,1.2567,4208.1,4208.0,11.57545219]
[1754806721990,1.8315,4208.1,4208.0,12.12445219]
[1754806722193,0.2697,4208.2,4208.1,1.3096]
[1754806722396,0.53572888,4209.3,4208.1,1.3096]
[1754806722397,0.8445,4208.5,4208.4,0.47516]
[1754806722686,0.8445,4208.5,4208.4,4.92916]
[1754806722890,0.8445,4208.8,4208.7,0.76124]
[1754806723090,0.8445,4208.8,4208.7,13.35124]
[1754806723884,0.8445,4208.8,4208.7,12.8761]
[1754806724295,1.6784,4208.8,4208.7,12.8761]
[1754806724888,1.2601,4208.8,4208.7,13.2824]
[1754806725489,1.6784,4208.8,4208.7,13.2724]
[1754806725689,0.2765,4209.2,4208.8,0.47513]
[1754806725690,0.4206,4209.2,4208.8,0.47513]
[1754806725899,1.6834,4209.2,4209.1,4.3136]
[1754806726393,1.6834,4209.2,4209.1,3.9057]
[1754806727594,1.9549,4209.2,4209.1,3.9057]
[1754806728193,1.6834,4209.2,4209.1,3.9057]
[1754806728497,1.6834,4209.2,4209.1,5.2682]
[1754806729086,1.6834,4209.2,4209.1,3.9057]
[1754806729688,1.6834,4209.2,4209.1,15.1017]
[1754806731192,3.2078,4210.5,4209.6,0.47503]
[1754806731396,0.2373,4210.1,4209.8,1.30941]
[1754806731594,0.2928,4209.9,4209.8,1.30941]
[1754806731990,0.2373,4210.0,4209.8,1.30941]
[1754806732186,0.2928,4210.4,4210.3,0.47495]
[1754806732395,0.5301,4210.4,4210.3,4.09455]
[1754806732696,0.47486,4211.3,4210.7,0.47491]
[1754806732893,0.47486,4211.3,4210.9,0.4118]
[1754806733093,0.47484,4211.4,4210.9,0.4118]
[1754806733294,0.47484,4211.4,4211.0,0.4118]
[1754806733690,0.47484,4211.4,4211.1,0.4118]
[1754806733892,3.2078,4211.5,4211.1,0.4118]
[1754806733893,3.2078,4211.5,4211.1,0.88667]
[1754806734099,6.0,4211.5,4210.4,0.8197]
[1754806734396,0.47486,4211.3,4210.6,0.47493]
[1754806734597,0.47484,4211.5,4210.9,4.1686]
[1754806735797,0.47482,4211.6,4210.9,4.92889]
[1754806736200,0.47489,4211.0,4210.2,3.2078]
[1754806736395,3.2078,4211.0,4209.5,3.2078]
[1754806736596,0.47497,4210.3,4210.0,3.2078]
[1754806736788,3.2078,4211.0,4209.4,4.38076]
[1754806736789,0.475,4210.0,4209.4,4.38076]
[1754806737297,0.475,4210.0,4209.4,3.9057]
[1754806737499,3.2078,4211.0,4209.5,0.76115]
[1754806737500,0.47499,4210.2,4209.5,0.76115]
[1754806737891,0.47499,4210.2,4209.6,0.6979]
[1754806738396,0.47501,4210.0,4209.6,0.2861]
[1754806738700,0.47499,4210.1,4209.8,0.4118]
[1754806738888,0.47499,4210.1,4209.9,3.6196]
[1754806739290,0.47498,4210.2,4209.9,3.6196]
[1754806740493,0.47501,4209.9,4209.7,0.8344]
[1754806740688,0.47501,4209.9,4209.8,3.6157]
[1754806740898,0.475,4210.1,4210.0,0.8344]
[1754806741192,0.475,4210.1,4210.0,1.6541]
[1754806742307,0.47498,4210.2,4210.1,0.4118]
[1754806742998,0.005,4210.5,4210.1,2.0604]
[1754806743191,0.47495,4210.4,4209.9,0.4118]
[1754806743390,0.47495,4210.4,4209.8,0.8381614]
[1754806743590,0.47495,4210.4,4210.1,0.4118]
[1754806743797,0.47495,4210.4,4210.0,0.4079]
[1754806744103,0.47495,4210.4,4210.2,3.6196]
[1754806744893,0.47495,4210.4,4209.8,0.4787714]
[1754806744894,0.47495,4210.4,4209.8,0.0037614]
[1754806745098,0.47499,4210.1,4209.8,0.0037614]
[1754806745297,0.017,4209.9,4209.8,0.0037614]
[1754806745590,0.017,4209.9,4209.8,0.8872614]
[1754806745795,0.017,4209.9,4209.8,2.1418614]
[1754806745991,0.0276,4209.9,4209.8,0.0037614]
[1754806748103,0.017,4209.7,4209.6,3.2128]
[1754806748401,0.017,4209.7,4209.6,3.6394]
[1754806748601,0.47499,4210.1,4209.6,5.3509]
[1754806748801,0.49199,4210.1,4210.0,0.8687]
[1754806749000,0.49199,4210.1,4210.0,2.1381]
[1754806749402,0.81279,4210.1,4210.0,1.2522]
[1754806749996,1.04799,4210.1,4210.0,0.4901]
[1754806750198,0.8442,4209.9,4209.8,0.5]
[1754806750599,0.4856,4209.7,4209.6,0.005]
[1754806750901,0.8442,4209.7,4209.6,0.005]
[1754806751606,0.609,4209.7,4209.6,1.7572]
[1754806751807,0.609,4209.7,4209.6,2.1431]
[1754806752009,0.47498,4210.3,4209.7,1.2694]
[1754806752201,0.4856,4209.8,4209.7,1.2546]
[1754806752409,0.47497,4210.3,4209.7,4.4624]
[1754806752609,0.609,4210.2,4210.1,1.7522]
[1754806753006,0.609,4210.2,4210.1,2.1381]
[1754806754010,0.4116,4210.3,4210.2,2.1381]
[1754806754212,0.4116,4210.3,4210.2,5.3459]
[1754806754411,0.4166,4210.5,4210.4,0.8687]
[1754806754609,0.4166,4210.5,4210.4,2.1381]
[1754806755000,0.005,4210.5,4210.4,2.1381]
[1754806755205,0.1284,4210.5,4210.4,2.1381]
[1754806755515,0.4856,4210.3,4210.2,3.6344]
[1754806755812,0.8442,4210.3,4210.2,3.2078]
[1754806757311,0.609,4210.3,4210.2,5.3459]
[1754806759109,0.005,4210.5,4210.2,5.3459]
[1754806759306,0.609,4210.4,4210.3,2.1381]
[1754806759505,0.005,4210.5,4210.3,0.8687]
[1754806759709,0.005,4210.5,4210.2,3.2078]
[1754806759710,0.614,4210.5,4210.4,1.7522]
[1754806760111,0.8492,4210.5,4210.4,0.4266]
[1754806760410,0.609,4210.0,4209.9,0.8835]
[1754806761006,1.08401,4210.0,4209.7,3.2078]
[1754806761205,0.96063,4209.7,4209.6,0.005]
[1754806761406,1.31923,4209.7,4209.6,0.005]
[1754806764516,0.47502,4209.8,4209.6,5.3509]
[1754806764711,0.47502,4209.8,4209.7,2.1381]
[1754806765215,3.2078,4210.3,4210.1,0.8687]
[1754806765216,0.4856,4210.2,4210.1,0.8687]
[1754806765415,0.609,4210.2,4210.1,1.2546]
[1754806765617,0.47498,4210.2,4210.1,4.4624]
[1754806765815,0.47497,4210.3,4210.2,0.674]
[1754806766117,0.47995,4210.5,4210.4,1.2546]
[1754806766312,0.47995,4210.5,4210.4,2.1381]
[1754806766618,0.005,4210.5,4210.4,2.1381]
[1754806768508,0.614,4210.5,4210.4,2.1381]
[1754806770317,0.614,4210.5,4210.3,0.5]
[1754806770318,1.31915,4210.4,4210.3,0.5]
[1754806770519,1.49253927,4210.4,4210.1,3.2078]
[1754806770819,0.609,4210.3,4210.2,2.1381]
[1754806772420,0.47495,4210.4,4210.2,2.1381]
[1754806772618,0.47495,4210.4,4210.1,3.2078]
[1754806772619,0.47495,4210.4,4210.3,2.1381]
[1754806773020,0.47495,4210.4,4210.3,2.6381]
[1754806773217,0.47995,4210.5,4210.3,2.1812]
[1754806773418,0.47995,4210.5,4210.4,2.48538553]
[1754806773619,0.005,4210.5,4210.4,2.48538553]
[1754806775319,0.005,4210.5,4210.4,2.1381]
[1754806775919,1.00682927,4211.4,4211.3,2.0829]
[1754806776122,0.47484,4211.4,4211.3,5.2907]
[1754806776619,0.47483,4211.5,4211.3,5.2907]
[1754806776815,0.47483,4211.5,4211.4,2.0829]
[1754806777014,1.08383,4211.5,4211.4,2.0829]
[1754806777916,0.128,4212.3,4211.8,0.8306]
[1754806778119,0.128,4212.3,4211.3,3.2078]
[1754806778120,0.95584,4211.5,4211.4,2.0829]
[1754806778623,1.08384,4211.5,4211.4,2.0829]
[1754806779026,1.08384,4211.5,4211.4,0.8576]
[1754806779219,1.31004,4211.5,4211.4,0.8576]
[1754806779420,1.08384,4211.5,4211.4,0.8576]
[1754806779924,1.31004,4211.5,4211.4,0.8576]
[1754806780521,1.08384,4211.5,4211.4,2.0829]
[1754806780722,0.47484,4211.5,4211.4,2.0829]
[1754806781325,1.08384,4211.5,4211.4,2.0829]
[1754806781729,1.08384,4211.5,4211.4,1.6882]
[1754806781919,1.31004,4211.5,4211.4,1.1488]
[1754806782115,1.31004,4211.5,4211.3,3.2078]
[1754806782320,0.8352,4211.4,4211.3,3.2078]
[1754806783328,1.18729,4210.8,4209.6,0.4284]
[1754806783527,3.2078,4209.9,4209.6,0.4284]
[1754806783823,0.47502,4209.8,4209.4,3.2078]
[1754806784028,0.47502,4209.8,4209.7,1.2523]
[1754806784520,0.47502,4209.8,4209.7,0.8576]
[1754806785027,0.47502,4209.8,4209.7,1.2523]
[1754806785928,0.47502,4209.8,4209.7,0.8576]
[1754806786727,0.47502,4209.8,4209.5,0.4284]
[1754806786929,0.47502,4209.8,4209.6,0.4284]
[1754806787127,0.47502,4209.8,4209.7,0.4284]
[1754806788024,0.47502,4209.8,4209.7,0.8576]
[1754806788531,3.09302,4209.8,4209.7,0.8576]
[1754806788926,0.47502,4209.8,4209.7,0.8576]
[1754806789321,0.47502,4209.8,4209.7,1.3576]
[1754806789534,0.47502,4209.8,4209.7,0.9284]
[1754806790032,3.09302,4209.8,4209.7,0.00229]
[1754806790233,0.47505,4209.5,4209.4,0.8576]
[1754806790428,0.47505,4209.5,4209.4,0.4284]
[1754806790635,1.18767,4209.4,4208.7,0.4284]
[1754806790829,0.47513,4208.8,4208.7,1.4256]
[1754806791129,1.19233,4208.8,4208.7,0.4292]
[1754806791338,0.75151,4208.1,4208.0,3.9282]
[1754806791637,0.75151,4208.1,4208.0,1.6545]
[1754806792025,0.75151,4208.1,4208.0,1.2598]
[1754806792432,1.19241,4208.1,4208.0,0.7204]
[1754806793230,0.75155,4207.8,4207.7,0.8231]
[1754806793436,1.19245,4207.8,4207.7,1.5435]
[1754806793735,0.75155,4207.8,4207.7,2.0829]
[1754806794125,0.47525,4207.8,4207.7,2.0829]
[1754806795932,0.47521,4208.1,4207.8,1.2523]
[1754806796229,0.47521,4208.2,4208.1,2.0829]
[1754806796430,0.47525,4207.8,4207.5,3.2078]
[1754806796631,3.95925,4208.7,4208.6,0.8306]
[1754806796828,3.95925,4208.7,4208.6,2.0829]
[1754806797640,0.47515,4208.7,4208.6,2.0829]
[1754806797840,0.75145,4208.7,4208.6,2.0829]
[1754806798441,0.47513,4208.8,4208.7,2.0829]
[1754806799246,0.4076,4208.7,4206.6,1.70005482]
[1754806799444,0.47536,4206.9,4206.8,0.8576]
[1754806799736,0.47534,4207.0,4206.8,0.8576]
[1754806799945,3.2078,4207.3,4206.7,0.8576]
[1754806800134,0.47525,4207.8,4206.9,0.4292]
[1754806800336,3.2078,4208.4,4207.7,3.2078]
[1754806800540,3.68299,4208.4,4207.9,0.8576]
[1754806800737,3.68299,4208.4,4208.0,0.8576]
[1754806800935,0.005,4208.6,4208.1,0.8576]
[1754806801138,0.005,4208.6,4208.2,0.8576]
[1754806801436,0.005,4208.6,4208.5,0.3947]
[1754806801645,0.005,4208.6,4208.5,1.2523]
[1754806802540,0.47521,4208.2,4207.7,3.2128]
[1754806802846,0.4076,4208.1,4207.8,0.8239]
[1754806803153,0.4076,4208.0,4207.9,1.2523]
[1754806803444,0.4076,4208.0,4207.9,0.8576]
[1754806804036,0.47522,4208.1,4207.7,3.2128]
[1754806804236,0.47522,4208.1,4208.0,1.2523]
[1754806804442,0.47517,4208.5,4207.9,0.3947]
[1754806804641,0.47517,4208.5,4207.7,3.2128]
[1754806804838,0.47517,4208.5,4208.1,0.3947]
[1754806805039,0.47517,4208.5,4207.8,1.2523]
[1754806805240,0.005,4208.6,4207.7,3.2128]
[1754806805241,0.005,4208.6,4208.3,0.4157]
[1754806805547,0.47509,4209.3,4208.6,0.4056]
[1754806805848,0.47509,4209.3,4208.2,3.2078]
[1754806805849,0.47509,4209.3,4208.8,0.4157]
[1754806806045,0.47509,4209.3,4208.9,0.4157]
[1754806806237,0.47509,4209.3,4208.7,3.2078]
[1754806806443,0.47509,4209.3,4208.8,0.4157]
[1754806806643,0.47509,4209.3,4208.9,0.4157]
[1754806806951,0.47509,4209.2,4208.2,0.4157]
[1754806807249,3.68286,4209.5,4208.8,0.4157]
[1754806807642,3.68286,4209.5,4209.0,0.4738]
[1754806807842,4.06406,4209.5,4209.1,0.8475]
[1754806808047,0.47509,4209.2,4208.8,1.3213]
[1754806808343,3.2078,4209.5,4208.8,1.3213]
[1754806808544,3.68285,4209.5,4208.7,3.2078]
[1754806808740,3.2078,4209.5,4208.9,1.3213]
[1754806808943,0.47504,4209.6,4208.7,3.2078]
[1754806809149,0.47504,4209.6,4209.1,1.3213]
[1754806809448,0.47504,4209.6,4208.8,1.3213]
[1754806809648,0.47504,4209.6,4208.7,3.2078]
[1754806809847,0.47504,4209.6,4208.9,1.3213]
[1754806810044,0.47504,4209.6,4209.0,1.3213]
[1754806810241,0.47501,4209.9,4209.3,1.3213]
[1754806810444,0.47501,4209.9,4209.2,3.2078]
[1754806810645,0.47501,4209.9,4209.3,1.3213]
[1754806810848,0.47501,4209.9,4209.4,1.3213]
[1754806811043,0.47501,4209.9,4209.5,1.3213]
[1754806811348,0.3812,4210.1,4209.2,3.2078]
[1754806811547,0.47502,4209.9,4209.2,3.2078]
[1754806811749,0.1916,4210.3,4209.2,3.2078]
[1754806812052,0.1916,4210.3,4209.4,1.3213]
[1754806812444,0.47497,4210.2,4209.4,0.47506]